bitfinex/quotes_ETHUSD_20241204
["timestamp","ask_amount","ask_price","bid_price","bid_amount"]
[1733322532849,0.51,3724.6,3723.6,2.68556]
[1733322533407,0.26,3724.6,3723.6,2.68556]
[1733322533654,0.26,3724.6,3723.7,3.063923]
[1733322534146,0.26,3724.6,3723.8,2.68541]
[1733322534451,0.26,3724.6,3724.0,0.8137]
[1733322534647,0.26,3724.6,3724.0,3.49897]
[1733322535604,0.26,3724.6,3724.0,0.8137]
[1733322535801,0.26,3724.6,3723.7,0.378453]
[1733322535802,2.94487,3724.6,3723.7,0.7531]
[1733322536202,2.68492,3724.5,3723.7,0.7531]
[1733322536812,0.26,3724.6,3723.7,0.7531]
[1733322537013,0.26,3724.6,3723.7,3.43859]
[1733322538153,0.26,3724.6,3723.7,0.7531]
[1733322538366,0.26,3724.6,3724.1,2.68521]
[1733322538651,0.26,3724.6,3723.8,0.37531]
[1733322538652,0.26,3724.6,3723.9,0.8088]
[1733322538953,0.26,3724.6,3724.0,2.68526]
[1733322540550,0.26,3724.6,3723.9,0.8088]
[1733322541057,0.564471,3724.6,3723.9,0.8088]
[1733322541266,2.68494,3724.5,3723.9,0.8088]
[1733322541416,0.03356303,3724.4,3722.7,2.68615]
[1733322541613,2.68514,3724.2,3723.1,2.68593]
[1733322541814,0.03356586,3724.4,3722.8,0.8088]
[1733322542055,2.68536,3723.9,3722.8,0.8088]
[1733322542264,0.03356783,3723.8,3722.8,1.1583]
[1733322542558,3.1855681,3724.4,3722.8,3.84444]
[1733322542709,2.68534,3724.0,3722.8,3.84444]
[1733322542908,0.03356966,3723.9,3722.8,3.84444]
[1733322543250,2.6855,3723.7,3722.8,1.1583]
[1733322543492,2.68557,3723.6,3722.9,0.384457]
[1733322543628,2.71881967,3724.1,3722.8,0.8088]
[1733322543808,0.50084438,3724.0,3722.8,0.8088]
[1733322544014,0.25042219,3724.0,3722.8,3.49494]
[1733322544336,0.25042219,3723.9,3722.9,2.68607]
[1733322544649,2.68535,3723.9,3722.9,2.68607]
[1733322544864,2.93589219,3723.8,3722.8,0.8088]
[1733322545020,2.68547,3723.8,3722.9,0.349499]
[1733322545223,0.25058776,3723.7,3722.8,3.8088]
[1733322545572,0.25076771,3723.6,3722.8,3.8088]
[1733322545859,0.50154108,3723.8,3722.8,6.49494]
[1733322546038,0.25077,3723.7,3722.8,6.49494]
[1733322546238,0.25077,3723.6,3722.8,6.49494]
[1733322546450,0.28434076,3723.8,3722.9,0.649494]
[1733322546660,0.25098468,3723.7,3722.9,0.649494]
[1733322546967,0.25098468,3723.6,3722.9,0.649494]
[1733322547164,0.25077108,3723.8,3722.9,0.649494]
[1733322547374,0.50196521,3723.7,3722.9,3.335554]
[1733322547543,0.25119413,3723.6,3722.9,3.335554]
[1733322547745,0.25119413,3723.5,3722.9,3.335554]
[1733322547945,0.25119413,3723.4,3722.9,3.335554]
[1733322548274,0.25119376,3723.6,3722.9,0.649494]
[1733322548571,0.25126352,3723.5,3722.9,0.649494]
[1733322548869,0.25125616,3723.9,3722.9,0.649494]
[1733322549041,0.50251251,3723.8,3722.9,0.649494]
[1733322549223,0.50251251,3723.7,3722.9,3.335534]
[1733322549426,0.25125635,3723.6,3722.9,3.335534]
[1733322549629,0.25125635,3723.5,3723.0,2.68597]
[1733322549839,0.25124481,3723.8,3723.0,2.68597]
[1733322550043,0.25123742,3723.7,3723.2,0.7548]
[1733322550238,8.84,3724.2,3723.2,0.7548]
[1733322550239,0.25124481,3724.0,3723.2,0.7548]
[1733322550454,0.25123452,3723.9,3723.2,0.7548]
[1733322550670,0.25123452,3723.8,3723.2,0.7548]
[1733322550842,0.25121842,3724.0,3723.2,0.7548]
[1733322551027,0.2512161,3723.9,3723.2,1.098883]
[1733322551228,0.2512161,3723.8,3723.2,1.098883]
[1733322551469,0.25121842,3724.1,3723.2,1.098883]
[1733322551648,3.18771414,3724.0,3723.2,0.7548]
[1733322551825,0.50243414,3723.9,3723.2,0.7548]
[1733322552025,0.25121572,3723.8,3723.2,0.7548]
[1733322552268,0.25121572,3723.7,3723.2,0.7548]
[1733322552566,0.25121572,3723.6,3723.2,0.7548]
[1733322552771,0.25123077,3723.8,3723.2,0.7548]
[1733322552971,0.25123115,3723.7,3723.2,0.7548]
[1733322553141,2.68529,3724.0,3723.2,0.7548]
[1733322553345,0.25123078,3723.9,3723.2,0.7548]
[1733322553665,0.50246239,3723.8,3723.2,0.7548]
[1733322553868,0.25123161,3723.7,3723.2,0.7548]
[1733322554070,0.25123161,3723.6,3723.2,0.7548]
[1733322554289,0.25124056,3723.8,3723.2,0.7548]
[1733322554430,0.25124155,3723.7,3723.2,0.7548]
[1733322554633,0.25124155,3723.6,3723.2,0.7548]
[1733322554840,2.68536,3723.9,3723.2,0.7548]
[1733322555064,0.50248406,3723.8,3723.2,0.7548]
[1733322555259,2.98108459,3723.9,3723.2,0.7548]
[1733322555260,0.25124199,3723.7,3723.2,0.7548]
[1733322555486,0.25124199,3723.6,3723.2,0.7548]
[1733322555780,2.98113459,3723.9,3723.2,0.7548]
[1733322555935,0.5024883,3723.8,3723.2,0.7548]
[1733322556142,0.29572459,3723.9,3723.2,0.7548]
[1733322556143,0.25124415,3723.7,3723.2,0.7548]
[1733322556447,0.25124415,3723.6,3723.2,0.7548]
[1733322556670,0.25125256,3724.0,3723.2,0.7548]
[1733322556838,0.50248418,3723.9,3723.2,3.44061]
[1733322557037,0.25123162,3723.8,3723.2,3.44061]
[1733322557238,0.25123162,3723.7,3723.2,0.7548]
[1733322557482,0.25123162,3723.6,3723.2,0.7548]
[1733322557665,0.25123162,3723.5,3723.2,0.7548]
[1733322557844,0.25123193,3723.8,3723.2,0.7548]
[1733322558046,0.50248209,3723.7,3723.2,0.7548]
[1733322558350,0.50248209,3723.7,3722.7,0.755]
[1733322558351,2.68575,3723.4,3722.7,0.755]
[1733322558674,2.93704016,3723.3,3722.7,0.755]
[1733322558977,2.93712016,3723.2,3722.3,0.7974]
[1733322559176,0.25125016,3723.1,3722.3,0.7974]
[1733322559377,0.25125016,3723.0,3722.3,0.7974]
[1733322559581,2.93736016,3722.9,3722.3,0.7974]
[1733322559890,2.68625,3722.7,3722.0,0.7758]
[1733322560107,0.03357896,3722.6,3721.7,0.7758]
[1733322560396,2.6863,3722.6,3721.5,0.4992]
[1733322560540,0.2511402,3722.5,3721.5,0.4992]
[1733322560745,0.25125694,3722.4,3721.5,3.18628]
[1733322560941,0.25125694,3722.3,3721.5,3.582488]
[1733322561286,8.84,3722.7,3721.5,3.582488]
[1733322561287,2.97103133,3722.4,3721.5,0.4992]
[1733322561440,0.25098615,3722.3,3721.5,0.4992]
[1733322561638,2.68645,3722.4,3721.5,0.4992]
[1733322561940,0.2509866,3722.3,3721.5,0.4992]
[1733322562141,0.2509866,3722.2,3721.5,0.4992]
[1733322562342,0.2509866,3722.3,3721.5,0.4992]
[1733322562971,2.68645,3722.4,3721.5,0.4992]
[1733322563282,2.68636,3722.6,3721.5,0.4992]
[1733322563514,0.25069902,3722.5,3721.5,0.4992]
[1733322564158,2.68639,3722.5,3721.5,0.4992]
[1733322564485,2.68639,3722.5,3721.5,3.18627]
[1733322564886,2.68639,3722.5,3721.5,0.4992]
[1733322565065,0.30557994,3722.4,3721.5,0.4992]
[1733322565599,2.68654,3722.3,3721.5,0.4992]
[1733322565951,0.30557994,3722.4,3721.5,0.4992]
[1733322566145,0.03358587,3722.3,3721.5,0.4992]
[1733322566585,2.6868,3721.9,3721.5,0.4992]
[1733322568152,2.68667,3722.1,3721.5,0.4992]
[1733322568354,5.68637,3722.5,3721.5,0.4992]
[1733322568597,2.68654,3722.3,3721.5,0.4992]
[1733322568973,3.0,3722.5,3721.5,0.4992]
[1733322568974,2.7201752,3722.2,3721.5,0.4992]
[1733322570119,2.68659,3722.2,3721.5,0.4992]
[1733322570622,2.72017521,3722.2,3721.5,0.4992]
[1733322570997,8.84,3722.4,3721.5,0.4992]
[1733322571522,2.68701,3721.6,3721.5,0.4992]
[1733322574132,8.84,3722.3,3721.5,0.4992]
[1733322574133,2.68689,3721.8,3721.5,0.4992]
[1733322574294,3.0,3722.2,3721.5,0.4992]
[1733322574621,0.25021956,3722.1,3721.5,1.2533]
[1733322574806,0.25021956,3722.2,3721.5,1.2533]
[1733322575210,2.68659,3722.2,3721.5,1.2533]
[1733322575692,2.68673,3722.0,3721.5,0.4992]
[1733322575880,2.72038648,3721.9,3721.5,0.4992]
[1733322576727,2.68667,3722.1,3721.5,0.4992]
[1733322577219,0.03358808,3722.0,3721.5,0.4992]
[1733322577430,0.30561389,3722.0,3721.5,0.4992]
[1733322577809,0.27202581,3722.0,3721.5,0.4992]
[1733322578641,2.68646,3722.4,3721.5,0.4992]
[1733322578936,8.84,3722.4,3721.6,0.793]
[1733322580440,0.03358458,3722.3,3721.6,0.793]
[1733322581308,8.84,3722.4,3721.6,0.793]
[1733322581527,0.03358498,3722.3,3721.6,0.793]
[1733322581850,8.84,3722.4,3721.6,0.793]
[1733322582339,0.03358501,3722.3,3721.6,0.793]
[1733322583801,11.52647,3722.4,3721.6,0.793]
[1733322583996,0.033585,3722.3,3721.6,0.793]
[1733322584198,0.28408316,3722.3,3721.6,0.793]
[1733322584434,0.25049816,3722.3,3721.6,0.793]
[1733322585229,0.25070863,3722.3,3721.6,0.793]
[1733322587142,0.25070863,3722.5,3722.0,2.68671]
[1733322587353,0.25070863,3722.4,3722.3,2.68644]
[1733322587644,0.50210979,3723.2,3722.3,2.68644]
[1733322587829,0.50210979,3723.1,3721.8,0.7584]
[1733322588142,0.28463359,3723.0,3721.6,0.7585]
[1733322588301,0.53568721,3723.0,3722.3,0.7585]
[1733322588507,0.25105617,3722.9,3722.3,3.445]
[1733322588808,0.50226709,3722.9,3722.3,3.445]
[1733322589010,0.25105617,3722.8,3722.3,3.445]
[1733322589234,0.25121092,3723.0,3722.3,3.445]
[1733322589440,0.50248276,3722.9,3722.3,3.445]
[1733322589629,0.25127184,3722.8,3722.3,3.445]
[1733322589832,0.25121092,3723.1,3722.3,3.445]
[1733322589833,0.28478835,3723.0,3722.3,3.445]
[1733322590021,0.50248478,3722.9,3722.3,3.445]
[1733322590346,0.25127386,3722.8,3722.3,3.445]
[1733322590548,0.28478836,3723.0,3722.3,3.445]
[1733322590718,0.50246667,3722.9,3722.3,0.7585]
[1733322590911,0.25125575,3722.8,3722.3,0.7585]
[1733322591114,0.03357744,3723.2,3722.3,0.7585]
[1733322591115,0.25121092,3723.1,3722.3,0.7585]
[1733322591322,0.53599515,3723.0,3722.3,0.7585]
[1733322591547,0.25120679,3722.9,3722.3,0.7585]
[1733322591844,0.03357744,3723.0,3722.3,0.7585]
[1733322591845,0.25120679,3722.8,3722.3,0.7585]
[1733322592046,0.25120679,3722.7,3722.0,0.7799]
[1733322592235,0.53599726,3722.6,3722.0,0.7799]
[1733322592438,0.25120679,3722.5,3722.0,0.7799]
[1733322592615,0.28478956,3722.4,3722.0,0.7799]
[1733322592818,0.28478956,3722.4,3721.9,0.00785951]
[1733322592819,0.03358277,3722.3,3721.9,0.00785951]
[1733322593017,0.32221734,3722.7,3721.9,0.00785951]
[1733322593018,2.93782107,3722.2,3721.9,0.00785951]
[1733322593245,8.84,3722.5,3721.9,0.00785951]
[1733322593246,0.54501318,3722.1,3721.9,0.00785951]
[1733322593565,0.29378211,3722.1,3721.9,0.00785951]
[1733322594141,0.25124638,3722.3,3721.9,0.00785951]
[1733322594142,0.25124638,3722.4,3721.9,0.00785951]
[1733322594330,0.50249627,3722.3,3721.9,0.00785951]
[1733322594549,0.25124989,3722.2,3721.9,0.00785951]
[1733322594713,0.50249627,3722.1,3721.9,0.00785951]
[1733322594923,0.25124638,3722.0,3721.9,0.00785951]
[1733322595131,0.25125056,3722.0,3721.9,0.00785951]
[1733322595531,0.25125901,3722.0,3721.9,0.00785951]
[1733322595854,0.50251802,3722.0,3721.9,0.00785951]
[1733322596089,0.25125901,3722.0,3721.9,0.00785951]
[1733322596869,0.25125901,3722.0,3721.9,0.76205951]
[1733322597029,0.25124479,3722.4,3721.9,0.76205951]
[1733322597230,0.50247551,3722.3,3721.9,0.76205951]
[1733322597430,0.25123072,3722.2,3721.9,0.76205951]
[1733322597677,0.25123072,3722.1,3721.9,0.76205951]
[1733322597844,0.25123072,3722.0,3721.9,0.76205951]
[1733322598589,0.25124775,3722.3,3721.9,0.76205951]
[1733322598874,0.25123511,3722.2,3721.9,0.76205951]
[1733322599064,0.25123511,3722.1,3721.9,0.76205951]
[1733322599284,0.25124138,3722.3,3721.9,0.76205951]
[1733322599446,0.50248292,3722.2,3721.9,0.76205951]
[1733322599651,0.25124154,3722.1,3721.9,0.76205951]
[1733322599845,0.25124138,3722.2,3721.9,0.76205951]
[1733322600035,0.25123703,3722.1,3721.9,0.76205951]
[1733322600233,0.337321,3722.3,3721.9,0.76205951]
[1733322600562,0.25122203,3722.5,3721.9,0.76205951]
[1733322600733,8.84,3722.6,3722.1,2.68665]
[1733322601174,8.84,3722.6,3721.9,3.44882951]
[1733322601473,8.84,3722.6,3721.9,0.76205951]
[1733322601677,2.68646,3722.4,3721.9,0.76205951]
[1733322601843,0.03357961,3722.5,3721.9,0.76205951]
[1733322602048,0.25117722,3722.4,3721.9,0.76205951]
[1733322602339,0.25117722,3722.5,3721.9,0.76205951]
[1733322602542,0.25118234,3722.4,3721.9,0.76205951]
[1733322602783,0.25118234,3722.3,3721.9,0.00785951]
[1733322602929,2.68645,3722.4,3721.9,0.00785951]
[1733322603132,0.25119971,3722.3,3721.9,0.00785951]
[1733322603382,2.68645,3722.4,3721.9,0.00785951]
[1733322603538,2.68672,3722.0,3721.9,0.00785951]
[1733322603747,8.84,3722.2,3721.9,0.00785951]
[1733322603954,0.25126652,3722.1,3721.9,0.00785951]
[1733322604174,8.84,3722.2,3721.9,0.00785951]
[1733322604383,0.25133683,3722.1,3722.0,0.8075]
[1733322604646,9.96152401,3723.2,3722.1,0.8075]
[1733322604857,2.68608,3722.9,3722.1,0.8075]
[1733322605078,2.68651,3722.3,3721.9,0.00785951]
[1733322605393,0.28491883,3722.2,3721.9,0.00785951]
[1733322605678,0.25133282,3722.1,3721.9,0.00785951]
[1733322605885,2.97164089,3722.0,3721.9,0.00785951]
[1733322606089,0.58208498,3722.0,3721.9,0.00785951]
[1733322606269,0.79989198,3722.0,3721.9,0.00785951]
[1733322606477,0.25133282,3722.0,3721.9,0.00785951]
[1733322606670,0.65360303,3722.0,3721.9,0.00785951]
[1733322608439,3.34032303,3722.0,3721.9,0.00785951]
[1733322608645,0.65360303,3722.0,3721.9,0.00785951]
[1733322609384,0.65360303,3722.0,3721.9,3.47234951]
[1733322609544,0.65360303,3722.0,3721.9,4.08828546]
[1733322609747,3.80738401,3723.3,3721.9,4.08828546]
[1733322609748,0.41903614,3723.0,3722.3,2.68649]
[1733322609947,0.41903614,3723.0,3722.1,0.02651404]
[1733322610261,0.65369577,3722.9,3722.1,2.68663]
[1733322610455,1.3073761,3722.9,3722.3,0.8312]
[1733322610674,0.25141551,3722.9,3722.3,3.869457]
[1733322610875,0.25141551,3722.9,3722.4,2.7129462]
[1733322611046,0.25141551,3722.9,3722.3,1.182977]
[1733322611274,0.25141551,3722.8,3722.3,1.182977]
[1733322611633,0.25141551,3722.8,3722.3,0.8312]
[1733322611911,10.38054986,3723.8,3722.9,0.8305]
[1733322612118,0.8212506,3723.7,3722.9,0.8305]
[1733322612488,0.65326612,3723.6,3722.9,0.8305]
[1733322612675,0.65326612,3723.5,3722.9,0.8305]
[1733322612872,0.65326612,3723.4,3722.9,0.8305]
[1733322613071,0.03357261,3723.6,3722.9,0.8305]
[1733322613072,0.2512562,3723.3,3722.9,0.8305]
[1733322613327,0.2512562,3723.2,3722.9,0.8305]
[1733322613619,0.28465675,3723.1,3722.0,0.7815]
[1733322613829,0.6528187,3723.1,3722.1,0.7815]
[1733322614021,0.6528187,3723.1,3722.0,0.40921655]
[1733322614022,0.25108411,3723.0,3722.6,0.7815]
[1733322614219,0.25108411,3722.9,3722.1,0.7611]
[1733322614419,0.25108411,3722.8,3722.1,0.7611]
[1733322614621,0.25108411,3722.7,3722.1,0.7611]
[1733322614820,0.25108411,3722.6,3722.1,0.7611]
[1733322615019,0.03357925,3722.5,3722.1,0.7611]
[1733322615221,0.25112736,3722.4,3721.9,0.00785951]
[1733322615390,9.12470952,3722.3,3721.9,0.00785951]
[1733322615592,0.25112736,3722.2,3721.9,0.00785951]
[1733322615792,0.03358726,3722.1,3721.9,0.00785951]
[1733322615996,8.84,3722.0,3721.9,2.69464951]
[1733322616241,8.84,3722.0,3721.9,3.46884951]
[1733322617752,8.84,3722.0,3721.9,0.78205951]
[1733322617951,8.84,3722.0,3721.9,0.00785951]
[1733322618113,9.09119032,3722.0,3721.9,0.00785951]
[1733322618831,9.09119032,3722.0,3721.9,0.79775951]
[1733322619065,8.84,3722.0,3721.9,0.79775951]
[1733322619386,0.25118296,3722.0,3721.9,0.00785951]
[1733322619540,8.84,3722.6,3721.9,0.00785951]
[1733322619735,0.4018991,3722.5,3721.9,0.00785951]
[1733322619932,0.4018991,3722.4,3721.9,0.00785951]
[1733322620134,0.4018991,3722.3,3721.9,0.00785951]
[1733322620335,8.84,3722.6,3721.9,0.00785951]
[1733322620639,0.40191027,3722.5,3722.0,0.8008]
[1733322620945,8.84,3722.7,3722.0,3.4875]
[1733322621132,0.40186551,3722.6,3722.0,3.4875]
[1733322621328,8.84,3722.7,3722.0,0.8008]
[1733322621533,0.40188796,3722.6,3721.9,0.00785951]
[1733322621758,0.40188796,3722.5,3721.9,2.69464951]
[1733322621959,0.03358115,3722.6,3721.9,2.69464951]
[1733322622196,0.40190098,3722.5,3722.0,0.02652134]
[1733322622478,8.84,3722.7,3722.2,2.68651]
[1733322622847,8.84,3722.7,3722.0,3.4636]
[1733322623059,8.84,3722.5,3722.0,0.7769]
[1733322623401,2.68651,3722.3,3721.9,0.00785951]
[1733322623543,0.40190831,3722.2,3721.9,0.00785951]
[1733322623745,8.84,3722.3,3721.9,0.00785951]
[1733322623989,8.84,3722.3,3722.0,0.7648]
[1733322625958,8.84,3722.8,3722.2,0.8031]
[1733322626287,8.84,3723.1,3722.8,0.8031]
[1733322626654,8.84,3723.5,3722.8,0.8031]
[1733322626858,8.84,3723.5,3722.9,2.68604]
[1733322626859,0.40183143,3723.4,3722.9,2.68604]
[1733322627048,0.40184557,3723.3,3723.0,2.686]
[1733322627237,0.40184557,3723.4,3722.8,0.8031]
[1733322627470,8.84,3723.5,3722.8,0.8031]
[1733322627471,8.84,3723.5,3722.8,3.48922]
[1733322627671,0.40177045,3723.4,3723.0,2.686]
[1733322628081,0.40177045,3723.4,3722.8,3.48922]
[1733322628297,8.84,3723.5,3722.8,0.8031]
[1733322628584,8.84,3723.9,3723.1,2.68591]
[1733322628783,0.40169614,3723.8,3723.3,2.68578]
[1733322628954,0.40169614,3723.7,3723.4,0.8008]
[1733322629158,0.40169614,3723.6,3723.4,0.8008]
[1733322629366,0.40159764,3723.8,3723.4,0.8008]
[1733322629575,0.40159764,3723.7,3723.4,0.8008]
[1733322629782,0.40159764,3723.6,3723.4,0.8008]
[1733322630013,9.24159764,3723.8,3723.4,0.8008]
[1733322630305,1.12152401,3724.2,3723.4,0.8008]
[1733322630306,8.84,3724.2,3723.4,0.8008]
[1733322630510,8.84,3724.2,3723.8,2.68542]
[1733322631412,8.84,3724.2,3723.4,0.8008]
[1733322631641,0.25069873,3724.1,3723.4,3.4865]
[1733322631910,0.25069873,3724.0,3723.4,0.8008]
[1733322632065,11.52549,3723.8,3723.1,0.83]
[1733322632263,8.84,3723.6,3722.7,0.83]
[1733322632526,2.96991412,3723.5,3722.7,0.83]
[1733322632821,0.25069873,3723.4,3722.7,0.83]
[1733322633026,2.686,3723.0,3722.3,0.8219]
[1733322633229,8.87357961,3722.9,3721.9,0.82975951]
[1733322633434,8.84,3722.9,3722.4,2.68636]
[1733322633760,8.84,3722.9,3722.7,2.6862]
[1733322634232,8.83214049,3722.9,3722.8,2.68615]
[1733322635878,8.83214049,3722.9,3722.6,0.7941]
[1733322636095,8.83214049,3722.9,3722.6,3.48037]
[1733322636618,8.83214049,3723.7,3722.6,0.7941]
[1733322636926,0.25073668,3723.6,3722.7,2.68615]
[1733322637222,0.25073668,3723.5,3722.8,2.68612]
[1733322637376,0.25073668,3723.4,3722.8,2.68608]
[1733322637590,8.83214049,3723.7,3722.9,2.68607]
[1733322637901,5.06494653,3724.3,3722.6,0.7941]
[1733322637902,0.25076974,3723.6,3723.0,0.01462014]
[1733322638102,0.25076974,3723.5,3723.4,0.8253]
[1733322638500,0.25077974,3723.7,3723.4,0.8253]
[1733322638701,8.83214049,3723.8,3723.2,2.68584]
[1733322638921,0.25077101,3723.7,3723.2,2.68584]
[1733322639119,0.25077101,3723.7,3723.2,0.36572768]
[1733322639327,8.83214049,3723.8,3723.5,2.68564]
[1733322639528,8.83214049,3724.2,3723.6,2.68556]
[1733322639730,0.65204059,3724.1,3723.2,0.351114]
[1733322639928,0.25078484,3724.0,3723.6,2.68557]
[1733322640097,0.25078484,3723.9,3723.6,2.68557]
[1733322640422,8.83214049,3724.2,3723.6,2.68557]
[1733322640625,0.25073662,3724.1,3723.4,2.68569]
[1733322640938,0.25073662,3724.0,3723.6,2.68556]
[1733322641111,8.83214049,3724.2,3723.7,2.68548]
[1733322641434,0.25072771,3724.1,3723.7,3.46107]
[1733322641592,8.83214049,3724.2,3723.8,2.68539]
[1733322641795,0.25067468,3724.1,3724.0,2.68528]
[1733322641996,0.25067468,3724.1,3724.0,3.031368]
[1733322642332,0.26,3724.6,3724.5,2.68492]
[1733322642531,0.26,3724.6,3724.5,3.46462]
[1733322643812,3.33,3725.4,3725.3,2.68434]
[1733322644146,3.33,3725.4,3725.3,3.704774]
[1733322645733,4.44,3725.4,3725.3,3.704774]
[1733322646340,4.44,3725.4,3725.3,0.752]
[1733322647430,5.55,3725.4,3725.3,3.43634]
[1733322648248,5.55,3725.4,3725.3,0.752]
[1733322648788,5.55,3725.4,3725.3,3.43634]
[1733322649045,6.66,3725.4,3725.3,3.43634]
[1733322649250,6.66,3725.4,3725.3,4.048425]
[1733322650011,1.17640937,3725.4,3725.3,4.048425]
[1733322650757,2.28640937,3725.4,3725.3,4.048425]
[1733322651747,5.8e-07,3725.4,3725.3,4.048425]
[1733322652043,1.11,3726.5,3725.3,4.048425]
[1733322652044,1.11,3726.5,3725.4,6.46547]
[1733322652346,1.11,3726.5,3725.4,7.4716595]
[1733322652758,1.11,3726.5,3725.4,4.4716595]
[1733322653855,3.33,3725.5,3725.4,4.4716595]
[1733322654219,0.6458,3725.5,3725.4,4.4716595]
[1733322655420,1.7558,3725.5,3725.4,4.4716595]
[1733322655983,1.7558,3725.5,3725.0,0.825]
[1733322656824,0.7555,3725.4,3724.8,0.53692211]
[1733322657757,0.78905311,3725.4,3724.8,0.53692211]
[1733322657957,9.6211936,3725.4,3724.1,0.7563]
[1733322658161,2.8658,3725.5,3722.3,2.95518]
[1733322658162,0.7621,3724.7,3723.6,0.7563]
[1733322658362,0.7621,3724.7,3723.7,0.39667589]
[1733322658575,2.68499,3724.4,3723.3,3.44138]
[1733322658926,2.68502,3724.4,3723.3,0.7556]
[1733322659235,2.68521,3724.1,3722.8,3.45268]
[1733322659475,2.68529,3724.0,3722.9,2.68607]
[1733322659839,11.51735049,3724.1,3722.9,2.68606]
[1733322660050,2.68529,3724.0,3723.0,0.345266]
[1733322660252,2.68545,3723.8,3723.0,0.345266]
[1733322660452,8.83214049,3723.9,3722.4,3.45301]
[1733322660652,2.68557,3723.7,3722.4,0.7666]
[1733322660838,11.51750049,3723.9,3722.7,2.68621]
[1733322661058,8.83214049,3723.9,3722.8,0.01461437]
[1733322661231,8.83214049,3723.9,3723.0,2.68597]
[1733322661568,8.83214049,3723.9,3723.1,2.68591]
[1733322661724,8.83214049,3723.9,3723.0,0.268597]
[1733322662240,8.83214049,3723.9,3722.8,2.68611]
[1733322662471,8.83214049,3723.9,3722.9,2.68606]
[1733322662640,8.83214049,3723.9,3722.6,2.68623]
[1733322662846,8.83214049,3723.9,3722.4,1.32044055]
[1733322663042,8.83214049,3723.9,3722.9,2.68606]
[1733322663242,2.68543,3723.8,3722.6,2.68624]
[1733322663427,2.68543,3723.8,3722.4,1.30582885]
[1733322663428,0.03357011,3723.8,3722.4,0.7666]
[1733322663631,9.61344049,3723.5,3722.4,0.7666]
[1733322664428,2.68602,3723.0,3721.8,2.68684]
[1733322664732,3.7813,3722.7,3721.7,0.53691779]
[1733322664937,3.0,3722.5,3721.5,0.4992]
[1733322665219,3.0,3722.3,3721.5,0.4992]
[1733322665433,2.68701,3721.6,3721.5,0.4992]
[1733322665797,6.45811,3721.6,3721.5,0.4992]
[1733322665997,15.29025049,3721.6,3721.5,0.4992]
[1733322666324,15.98081075,3721.6,3721.5,0.4992]
[1733322666495,2.68766,3720.7,3719.2,2.68867]
[1733322666692,2.68766,3720.7,3719.1,0.7596]
[1733322666693,3.48421,3720.5,3719.1,0.7596]
[1733322666901,3.48421,3720.5,3719.2,0.01467959]
[1733322666902,8.33294049,3720.4,3719.2,0.01467959]
[1733322667212,9.12934049,3720.5,3719.1,0.7596]
[1733322667602,8.33294049,3720.5,3719.2,0.0146796]
[1733322667787,8.33294049,3721.3,3720.2,0.75]
[1733322668106,9.13834049,3721.6,3720.3,2.68789]
[1733322668311,0.8054,3721.6,3721.0,2.68741]
[1733322668536,0.28074595,3723.0,3720.4,0.35844025]
[1733322668537,0.8054,3722.0,3720.8,2.68757]
[1733322668685,0.8054,3722.5,3721.7,2.68693]
[1733322668886,8.33294049,3722.7,3721.5,0.01463655]
[1733322669085,0.8054,3723.1,3721.5,0.01463655]
[1733322669086,8.33294049,3722.9,3722.1,2.68662]
[1733322669392,8.33294049,3723.0,3722.2,0.268662]
[1733322669695,8.33294049,3723.4,3722.6,2.68627]
[1733322669921,0.8054,3723.7,3722.7,0.01462015]
[1733322669922,8.33294049,3723.7,3722.7,0.01462015]
[1733322670228,0.7972,3724.2,3722.3,0.75]
[1733322670229,8.33294049,3724.1,3722.4,0.01461319]
[1733322670378,0.7972,3724.2,3722.4,0.01461319]
[1733322670583,0.7972,3724.2,3723.1,2.68588]
[1733322670926,0.7972,3724.2,3722.6,2.68623]
[1733322670927,2.68536,3723.9,3722.6,2.68629]
[1733322671230,11.55878198,3724.1,3722.5,0.34511232]
[1733322671393,8.84,3724.1,3722.6,0.01461738]
[1733322671597,8.84,3724.1,3723.2,2.68583]
[1733322671905,8.84,3724.1,3722.8,2.68615]
[1733322671906,8.84,3724.1,3722.4,0.01460926]
[1733322672081,0.03356752,3724.0,3722.3,0.75]
[1733322672279,0.7972,3724.2,3722.3,0.76461219]
[1733322673012,8.84,3725.0,3722.4,0.34511722]
[1733322673213,8.84,3724.7,3723.6,2.68556]
[1733322673529,8.87356342,3724.6,3723.3,2.68572]
[1733322673706,8.84,3724.5,3722.9,0.0146021]
[1733322673877,9.6278,3724.9,3723.8,2.68541]
[1733322674078,8.84,3724.7,3722.9,0.8124]
[1733322674335,2.68518,3724.2,3722.5,2.68636]
[1733322674620,0.8192,3724.4,3722.4,0.8124]
[1733322674621,2.68559,3723.6,3722.6,0.54701166]
[1733322674826,2.68559,3723.6,3722.4,3.49881]
[1733322674995,2.68528,3724.0,3721.9,3.47754]
[1733322674996,2.68564,3723.5,3721.9,3.47754]
[1733322675196,3.0,3723.9,3721.9,0.7908]
[1733322675197,3.0,3723.7,3721.9,0.7908]
[1733322675541,2.68571,3723.5,3722.0,0.40099119]
[1733322675834,0.7843,3723.2,3722.0,0.40099119]
[1733322676136,0.7843,3723.2,3721.9,0.7908]
[1733322676137,0.7843,3723.2,3722.2,2.68656]
[1733322676298,0.7843,3723.2,3721.9,0.7908]
[1733322676497,0.7843,3723.2,3721.8,0.53223192]
[1733322676711,2.68622,3722.7,3721.8,0.53223192]
[1733322677018,9.5942,3722.5,3721.1,2.68733]
[1733322677337,2.68656,3722.3,3721.2,0.268733]
[1733322677515,8.87358448,3722.4,3721.2,0.268733]
[1733322677516,8.84,3722.4,3721.2,0.268733]
[1733322677721,8.84,3722.4,3721.2,0.01464316]
[1733322677899,8.84,3722.4,3721.6,2.68701]
[1733322678521,8.84,3722.4,3721.3,2.68716]
[1733322678735,8.84,3722.4,3721.4,2.68714]
[1733322678952,2.6868,3721.9,3720.8,0.54916144]